bitfinex-derivatives/quotes_ETHF0:USTF0_20260119
["timestamp","ask_amount","ask_price","bid_price","bid_amount"]
[1768863048829,2.50606991,3201.4,3200.1,8.411]
[1768863049740,2.50606991,3201.4,3200.1,13.23587699]
[1768863049923,2.50606991,3201.4,3200.2,8.80982592]
[1768863050124,2.50606991,3201.4,3200.3,3.52182592]
[1768863051319,1.10686604,3201.9,3200.3,3.52182592]
[1768863051528,1.97120345,3201.9,3200.3,3.52182592]
[1768863051725,1.97120345,3201.9,3200.5,1.30305107]
[1768863051726,5.30825087,3201.9,3200.5,1.30305107]
[1768863051934,3.33704742,3201.9,3200.5,1.30305107]
[1768863052326,3.3393559,3201.9,3200.5,1.30305107]
[1768863052536,3.3393559,3201.9,3200.3,3.52182592]
[1768863052925,3.3393559,3201.9,3200.8,1.30226874]
[1768863053128,3.3393559,3201.9,3200.8,1.3050074]
[1768863057435,0.00230848,3201.9,3200.8,1.3050074]
[1768863058829,0.00230848,3201.9,3201.0,1.30226874]
[1768863061441,0.00230848,3201.9,3200.8,0.00273866]
[1768863061642,0.00230848,3201.9,3201.0,1.30226874]
[1768863061938,0.00230848,3201.9,3201.1,8.396]
[1768863063651,0.00230848,3201.9,3201.2,1.30226874]
[1768863064342,3.35892262,3202.3,3201.3,5.273]
[1768863064537,0.86467844,3202.2,3201.3,5.273]
[1768863064844,3.35892262,3202.3,3201.3,5.273]
[1768863064845,0.86467844,3202.1,3201.3,5.273]
[1768863065042,3.35892262,3202.3,3201.3,5.273]
[1768863065344,0.86467519,3202.2,3201.3,5.273]
[1768863065546,0.86467519,3202.1,3201.3,5.273]
[1768863065736,3.36215512,3202.3,3201.3,5.273]
[1768863065934,0.86455958,3202.2,3201.3,5.273]
[1768863066147,0.86455958,3202.1,3201.3,5.273]
[1768863066343,3.36215512,3202.3,3201.3,5.273]
[1768863066543,0.86447329,3202.2,3201.3,5.273]
[1768863066734,0.86447329,3202.1,3201.3,5.273]
[1768863066938,3.36215512,3202.3,3201.3,5.273]
[1768863067236,0.8644829,3202.2,3201.3,5.273]
[1768863067437,0.8644829,3202.1,3201.3,5.273]
[1768863067640,3.36215512,3202.3,3201.2,1.30226874]
[1768863067951,3.35892262,3202.1,3201.3,5.276]
[1768863068144,3.35892262,3201.9,3201.3,5.276]
[1768863070651,3.35892262,3201.9,3200.8,1.3050074]
[1768863070850,3.35892262,3201.9,3200.9,5.275]
[1768863073553,3.35892262,3201.9,3200.8,0.00273866]
[1768863073850,3.35892262,3201.7,3200.8,5.27973866]
[1768863074854,3.35892262,3201.7,3200.8,5.27773866]
[1768863075257,3.35892262,3201.5,3200.8,5.27773866]
[1768863078656,3.35892262,3201.5,3200.6,5.27]
[1768863079251,4.66119136,3201.3,3199.8,40.8]
[1768863079456,3.35892262,3201.1,3199.9,6.57326874]
[1768863080348,3.35892262,3201.1,3200.1,1.30226874]
[1768863083966,3.35892262,3201.1,3200.3,1.30226874]
[1768863085666,3.35892262,3201.1,3199.9,5.271]
[1768863085868,3.35892262,3201.1,3200.3,1.30226874]
[1768863091865,3.58220641,3201.6,3200.3,1.30226874]
[1768863092167,4.44844628,3201.5,3200.3,1.30226874]
[1768863092369,4.44844628,3201.4,3200.3,1.30226874]
[1768863092567,3.58220641,3201.4,3200.3,1.30226874]
[1768863094068,3.58220641,3201.4,3200.4,5.273]
[1768863095873,3.58220641,3201.4,3200.3,1.30226874]
[1768863096069,3.58220641,3201.4,3200.4,5.27]
[1768863099475,4.44923437,3201.3,3200.4,5.27]
[1768863099679,3.58220641,3201.3,3200.4,5.27]
[1768863100271,3.58220641,3201.3,3200.3,5.262]
[1768863101379,0.15628,3201.5,3200.5,1.30226874]
[1768863101579,0.86743525,3201.4,3200.5,1.30226874]
[1768863101772,0.15628,3201.5,3200.5,6.56426874]
[1768863101773,3.6724298,3201.5,3200.5,6.56426874]
[1768863101974,0.867436,3201.4,3200.5,6.56426874]
[1768863102279,3.6724298,3201.5,3200.5,6.56426874]
[1768863102478,0.86770584,3201.4,3200.5,6.56426874]
[1768863102680,0.86770584,3201.3,3200.5,6.56426874]
[1768863102879,3.6724298,3201.5,3200.5,6.56426874]
[1768863103080,0.86770511,3201.4,3200.5,6.56426874]
[1768863103279,0.86770511,3201.3,3200.5,6.56426874]
[1768863103481,3.6724298,3201.5,3200.5,6.56426874]
[1768863103679,0.86804597,3201.4,3200.5,6.56426874]
[1768863103880,0.86804597,3201.3,3200.5,6.56426874]
[1768863104081,3.6724298,3201.5,3200.5,6.56426874]
[1768863104282,0.86804395,3201.4,3200.5,6.56426874]
[1768863104581,0.86804395,3201.3,3200.5,6.56426874]
[1768863104786,3.6724298,3201.5,3200.5,6.56426874]
[1768863105078,0.86814882,3201.4,3200.5,6.56426874]
[1768863105279,0.86814882,3201.3,3200.5,6.56426874]
[1768863105474,3.6724298,3201.5,3200.5,6.56426874]
[1768863105676,0.86826122,3201.4,3200.5,6.56426874]
[1768863105877,0.86826122,3201.3,3200.5,6.56426874]
[1768863106077,3.6724298,3201.5,3200.5,6.56426874]
[1768863106277,0.86826266,3201.4,3200.5,6.56426874]
[1768863106484,0.86826266,3201.3,3200.5,6.56426874]
[1768863106686,3.6724298,3201.5,3200.5,6.56426874]
[1768863106883,0.86841007,3201.4,3200.5,6.56426874]
[1768863107084,0.86841007,3201.3,3200.5,6.56426874]
[1768863107387,3.6724298,3201.5,3200.5,6.56426874]
[1768863107572,0.86971594,3201.4,3200.5,6.56426874]
[1768863107772,0.86971594,3201.3,3200.5,6.56426874]
[1768863107977,3.6724298,3201.5,3200.5,6.56426874]
[1768863108178,0.86971479,3201.4,3200.5,6.56426874]
[1768863108374,0.86971479,3201.3,3200.5,6.56426874]
[1768863108583,0.86971479,3201.2,3200.5,6.56426874]
[1768863108784,3.6724298,3201.5,3200.5,6.56426874]
[1768863108981,0.86991199,3201.4,3200.5,6.56426874]
[1768863109183,0.86991199,3201.3,3200.5,6.56426874]
[1768863109491,0.86991199,3201.2,3200.5,6.56426874]
[1768863109686,3.6724298,3201.5,3200.5,6.56426874]
[1768863109892,0.86990764,3201.4,3200.5,6.56426874]
[1768863110082,0.86990764,3201.3,3200.5,6.56426874]
[1768863110282,0.86990764,3201.2,3200.5,6.56426874]
[1768863110484,3.6724298,3201.5,3200.5,6.56426874]
[1768863110685,0.86993057,3201.4,3200.5,6.56426874]
[1768863110893,0.86993057,3201.3,3200.5,6.56426874]
[1768863111095,0.86993057,3201.2,3200.5,6.56426874]
[1768863111294,3.6724298,3201.5,3200.5,6.56426874]
[1768863111601,0.8699588,3201.4,3200.5,6.56426874]
[1768863111805,0.8699588,3201.3,3200.5,6.56426874]
[1768863112100,0.8699588,3201.2,3200.5,6.56426874]
[1768863112298,3.6724298,3201.5,3200.5,6.56426874]
[1768863112500,0.86999571,3201.4,3200.5,6.56426874]
[1768863112694,0.86999571,3201.3,3200.5,6.56426874]
[1768863113000,0.86999571,3201.2,3200.5,5.245]
[1768863113202,3.36184164,3201.4,3200.5,5.245]
[1768863113401,0.86999851,3201.3,3200.5,5.245]
[1768863113603,0.86999851,3201.2,3200.5,5.245]
[1768863113798,3.36184164,3201.4,3200.5,5.245]
[1768863114000,0.87004576,3201.3,3200.7,1.30226874]
[1768863114299,3.36184164,3201.7,3200.7,1.30226874]
[1768863114493,0.87006389,3201.6,3200.7,1.30226874]
[1768863114698,0.87006389,3201.5,3200.7,1.30226874]
[1768863114898,0.87006389,3201.4,3200.5,5.245]
[1768863115204,3.36184164,3201.7,3200.5,5.245]
[1768863115405,0.87006055,3201.6,3200.5,5.245]
[1768863115703,0.87006055,3201.5,3200.5,5.245]
[1768863115997,0.87006055,3201.4,3200.5,5.241]
[1768863116205,3.36184164,3201.7,3200.5,5.241]
[1768863116405,0.87000774,3201.6,3200.5,5.241]
[1768863116601,0.87000774,3201.5,3200.5,5.241]
[1768863116901,0.87000774,3201.4,3200.5,5.241]
[1768863117094,3.36184164,3201.7,3200.5,5.241]
[1768863117296,0.86998561,3201.6,3200.5,5.241]
[1768863117598,0.86998561,3201.5,3200.5,5.241]
[1768863117805,3.36184164,3201.7,3200.5,5.241]
[1768863117995,0.86993248,3201.6,3200.5,5.241]
[1768863118195,0.86993248,3201.5,3200.5,5.241]
[1768863118395,3.36184164,3201.7,3200.5,5.241]
[1768863118600,0.86988727,3201.6,3200.5,5.241]
[1768863118800,0.86988727,3201.5,3200.5,5.241]
[1768863119002,3.36184164,3201.7,3200.5,5.241]
[1768863119301,0.86988722,3201.6,3200.5,5.241]
[1768863119502,0.86988722,3201.5,3200.5,5.241]
[1768863119704,3.36184164,3201.7,3200.5,5.241]
[1768863119905,0.86985989,3201.6,3200.5,5.241]
[1768863120107,0.86985989,3201.5,3200.5,5.241]
[1768863120310,3.36184164,3201.7,3200.5,5.241]
[1768863120503,0.86990028,3201.6,3200.5,5.241]
[1768863120706,0.86990028,3201.5,3200.5,5.241]
[1768863120902,3.36184164,3201.7,3200.5,5.241]
[1768863121102,0.86999577,3201.6,3200.5,5.241]
[1768863121302,0.86999577,3201.5,3200.5,5.241]
[1768863121502,3.36184164,3201.7,3200.4,1.30224882]
[1768863121707,4.23206049,3201.6,3200.1,0.15634]
[1768863121907,0.87021885,3201.5,3200.2,8.357]
[1768863122207,3.36184164,3201.6,3200.4,1.30224882]
[1768863122409,0.87018041,3201.5,3200.4,1.30224882]
[1768863122608,3.36184164,3201.6,3200.4,1.30224882]
[1768863122910,0.87016878,3201.5,3200.4,1.30224882]
[1768863123107,3.36184164,3201.6,3200.4,1.30224882]
[1768863123306,0.87009677,3201.5,3200.4,1.30224882]
[1768863123506,3.36184164,3201.6,3200.4,1.30224882]
[1768863123805,0.87014594,3201.5,3200.4,1.30224882]
[1768863124001,0.87014922,3201.4,3200.4,1.30224882]
[1768863124202,3.36184164,3201.6,3200.4,1.30224882]
[1768863124508,0.87012527,3201.5,3200.4,1.30224882]
[1768863124705,3.36184164,3201.6,3200.4,1.30224882]
[1768863125007,4.23196447,3201.5,3200.4,9.65324882]
[1768863125210,3.36184164,3201.5,3200.4,9.65324882]
[1768863133710,3.36184164,3201.8,3200.4,9.65324882]
[1768863133909,4.23207105,3201.7,3200.4,9.65324882]
[1768863134215,4.23207105,3201.6,3200.4,9.65324882]
[1768863134417,0.87022941,3201.5,3200.4,9.65324882]
[1768863135812,3.36184164,3201.4,3200.5,8.334]
[1768863137117,3.36184164,3201.8,3200.5,8.334]
[1768863137418,4.23240133,3201.7,3200.5,8.334]
[1768863137616,0.87055969,3201.6,3200.5,8.334]
[1768863137810,4.23240133,3201.6,3200.5,8.334]
[1768863138108,3.36184164,3201.6,3200.5,8.334]
[1768863140323,3.36184164,3201.6,3200.5,8.327]
[1768863142528,0.8708997,3201.5,3200.5,8.327]
[1768863142712,3.36184164,3201.6,3200.5,8.327]
[1768863143019,0.87091068,3201.5,3200.5,8.327]
[1768863143212,3.36184164,3201.6,3200.5,8.327]
[1768863143414,0.87089533,3201.5,3200.5,8.327]
[1768863143622,3.36184164,3201.6,3200.5,8.327]
[1768863143813,0.87108085,3201.5,3200.5,8.327]
[1768863144117,3.36184164,3201.6,3200.5,8.327]
[1768863144422,0.8710682,3201.5,3200.5,8.327]
[1768863144610,3.36184164,3201.6,3200.5,8.327]
[1768863144904,0.87133659,3201.5,3200.5,8.327]
[1768863145107,3.36184164,3201.6,3200.5,8.327]
[1768863145313,0.87132642,3201.5,3200.5,8.327]
[1768863145515,3.36184164,3201.6,3200.5,8.327]
[1768863145717,0.8713428,3201.5,3200.5,8.327]
[1768863145911,3.36184164,3201.6,3200.5,8.327]
[1768863146112,4.33494234,3201.5,3200.5,8.327]
[1768863146410,4.57046435,3201.9,3200.5,8.327]
[1768863146615,0.87135691,3201.8,3200.5,8.327]
[1768863146817,4.33495522,3201.7,3200.5,8.327]
[1768863147019,0.87135691,3201.6,3200.5,8.327]
[1768863147219,0.87135691,3201.5,3200.5,8.327]
[1768863147421,3.46359831,3201.7,3200.5,8.327]
[1768863147716,0.87134712,3201.6,3200.5,8.327]
[1768863147915,0.87134712,3201.5,3200.5,8.327]
[1768863148219,3.46359831,3201.7,3200.5,8.327]
[1768863148411,4.33493821,3201.6,3200.5,8.327]
[1768863148721,0.8713399,3201.5,3200.5,8.327]
[1768863149019,3.46359831,3201.6,3200.5,8.327]
[1768863149214,0.87127798,3201.5,3200.5,8.327]
[1768863149412,3.46359831,3201.6,3200.5,8.327]
[1768863153524,0.87095217,3201.5,3200.5,8.327]
[1768863153724,3.46359831,3201.6,3200.5,8.327]
[1768863154022,0.87096897,3201.5,3200.5,8.327]
[1768863154214,3.46359831,3201.6,3200.5,8.327]
[1768863155127,0.870819,3201.5,3200.5,8.327]
[1768863155318,3.46359831,3201.6,3200.5,8.327]
[1768863155519,0.87081898,3201.5,3200.5,8.327]
[1768863155719,3.46359831,3201.6,3200.5,8.327]
[1768863156128,0.87079269,3201.5,3200.5,8.327]
[1768863156319,3.46359831,3201.6,3200.5,8.327]
[1768863156821,0.87078755,3201.5,3200.5,8.327]
[1768863157022,3.46359831,3201.6,3200.5,8.327]
[1768863158527,3.46359831,3201.6,3200.4,1.30224882]
[1768863158722,3.46359831,3201.6,3200.5,8.3]
[1768863159431,0.8708415,3201.5,3200.5,8.3]
[1768863159640,3.46359831,3201.6,3200.5,8.3]
[1768863160131,0.87086251,3201.5,3200.5,8.3]
[1768863160332,3.46359831,3201.6,3200.5,8.3]
[1768863160634,0.87086241,3201.5,3200.5,8.3]
[1768863160930,3.46359831,3201.6,3200.5,8.3]
[1768863161232,0.87086071,3201.5,3200.5,8.3]
[1768863161529,3.46359831,3201.6,3200.5,8.3]
[1768863161730,0.87088622,3201.5,3200.5,8.3]
[1768863161918,3.46359831,3201.6,3200.5,8.3]
[1768863162121,0.87088766,3201.5,3200.5,8.3]
[1768863162331,3.46359831,3201.6,3200.5,8.3]
[1768863162523,0.87091825,3201.5,3200.5,8.3]
[1768863162723,3.46359831,3201.6,3200.5,8.3]
[1768863162924,0.87091649,3201.5,3200.5,8.3]
[1768863163125,3.46359831,3201.6,3200.5,8.3]
[1768863163422,0.87095489,3201.5,3200.5,8.3]
[1768863163623,3.46359831,3201.6,3200.5,8.3]
[1768863163827,0.87095489,3201.5,3200.5,8.3]
[1768863164129,3.46359831,3201.6,3200.5,8.3]
[1768863164328,0.87099994,3201.5,3200.5,8.3]
[1768863164530,3.46359831,3201.6,3200.5,8.3]
[1768863164731,0.87099996,3201.5,3200.5,8.3]
[1768863165028,3.46359831,3201.6,3200.5,8.3]
[1768863165230,0.87099917,3201.5,3200.5,8.3]
[1768863165422,3.46359831,3201.6,3200.5,8.3]
[1768863165619,0.87105939,3201.5,3200.5,8.3]
[1768863165825,3.46359831,3201.6,3200.5,8.3]
[1768863166024,0.871058,3201.5,3200.5,8.3]
[1768863166225,3.46359831,3201.6,3200.5,8.3]
[1768863166533,0.87115225,3201.5,3200.5,8.3]
[1768863166733,3.46359831,3201.6,3200.5,8.3]
[1768863166933,0.87115239,3201.5,3200.5,8.3]
[1768863167124,3.46359831,3201.6,3200.5,8.3]
[1768863167325,3.60111508,3202.1,3200.8,1.30224882]
[1768863167626,3.60434758,3202.3,3200.8,1.30224882]
[1768863169740,3.76058758,3202.3,3200.5,3.28232]
[1768863169934,3.60111508,3202.1,3200.6,2.414]
[1768863170530,3.60111508,3202.1,3200.5,0.15632]
[1768863170741,3.60111508,3202.1,3200.6,3.679]
[1768863172442,3.60111508,3202.1,3200.5,0.15632]
[1768863172639,3.60111508,3202.1,3200.6,5.159]
[1768863176446,3.60111508,3202.1,3200.5,0.15632]
[1768863176643,3.60111508,3202.1,3200.6,8.278]
[1768863176843,3.60111508,3202.1,3200.9,1.3022421]
[1768863179349,3.59873951,3201.9,3200.9,1.3022421]
[1768863179549,3.59873951,3201.7,3200.8,1.3022421]
[1768863180449,3.59873951,3201.7,3200.7,1.3022421]
[1768863181745,3.59873951,3201.7,3199.9,43.76967165]
[1768863181746,0.86389216,3201.6,3199.9,43.76967165]
[1768863182047,4.46263167,3201.5,3200.3,1.3022421]
[1768863182248,3.59873951,3201.3,3200.3,1.3022421]
[1768863182941,3.59873951,3201.1,3200.3,1.3022421]
[1768863184139,3.59873951,3201.1,3199.7,40.8]
[1768863184343,3.59873951,3201.1,3200.0,1.3022421]
[1768863189768,3.59873951,3201.1,3199.6,40.80222486]
[1768863190061,3.59873951,3201.1,3199.9,1.3022421]
[1768863190258,3.59873951,3201.1,3199.9,5.4092421]
[1768863191667,3.59873951,3201.1,3199.9,1.3022421]
[1768863191867,3.59873951,3201.1,3199.9,6.4482421]
[1768863193369,3.59873951,3201.1,3199.9,1.3022421]
[1768863193668,3.59873951,3201.1,3199.9,6.4482421]
[1768863196968,3.59873951,3201.1,3199.9,5.146]
[1768863197157,3.59873951,3201.1,3199.9,6.4482421]
[1768863197564,3.59873951,3201.1,3200.1,1.3022421]
[1768863199377,3.59873951,3201.1,3199.9,5.146]
[1768863199675,3.59873951,3201.1,3200.0,1.3022421]
[1768863203380,3.59873951,3201.1,3200.0,6.4542421]
[1768863207184,4.25696075,3201.0,3200.0,6.4542421]
[1768863207384,3.3942635,3200.9,3200.0,6.4542421]
[1768863207683,3.3942635,3200.9,3200.0,5.152]
[1768863208075,3.3942635,3200.9,3199.9,1.3022421]
[1768863208277,3.3942635,3200.9,3200.0,5.156]
[1768863209484,3.3942635,3200.9,3200.0,6.4582421]
[1768863211079,3.3942635,3200.9,3200.0,5.156]
[1768863211284,3.3942635,3200.9,3200.1,1.3022421]
[1768863215484,3.3942635,3200.9,3200.4,1.3022421]
[1768863216986,4.50826602,3201.3,3200.4,1.3022421]
[1768863217186,0.86441735,3201.2,3200.4,1.3022421]
[1768863217493,4.50826602,3201.3,3200.4,1.3022421]
[1768863217494,0.86441735,3201.1,3200.4,1.3022421]
[1768863217691,0.86441735,3201.0,3200.4,1.3022421]
[1768863217891,0.86441735,3200.9,3200.4,1.3022421]
[1768863218080,4.50826602,3201.3,3200.4,1.3022421]
[1768863218285,0.86440418,3201.2,3200.4,1.3022421]
[1768863218500,0.86440418,3201.1,3200.4,1.3022421]
[1768863218696,0.86440418,3201.0,3200.4,1.3022421]
[1768863218994,3.3942635,3201.3,3200.4,1.3022421]
[1768863219296,0.86436634,3201.2,3200.4,1.3022421]
[1768863219489,0.86436634,3201.1,3200.4,1.3022421]
[1768863219688,0.86436634,3201.0,3200.4,1.3022421]
[1768863219890,3.3942635,3201.3,3200.4,1.3022421]
[1768863220090,0.8643314,3201.2,3200.4,1.3022421]
[1768863220291,0.8643314,3201.1,3200.4,1.3022421]
[1768863220493,0.8643314,3201.0,3200.4,1.3022421]
[1768863220694,3.3942635,3201.3,3200.4,1.3022421]
[1768863220894,0.86430105,3201.2,3200.4,1.3022421]
[1768863221098,0.86430105,3201.1,3200.4,1.3022421]
[1768863221298,0.86430105,3201.0,3200.4,1.3022421]
[1768863221497,3.3942635,3201.3,3200.4,1.3022421]
[1768863221697,0.86427334,3201.2,3200.4,1.3022421]
[1768863221900,0.86427334,3201.1,3200.4,1.3022421]
[1768863222091,0.86427334,3201.0,3200.4,1.3022421]
[1768863222290,3.3942635,3201.3,3200.4,1.3022421]
[1768863222490,0.86427965,3201.2,3200.4,1.3022421]
[1768863222694,0.86427965,3201.1,3200.4,1.3022421]
[1768863222889,0.86427965,3201.0,3200.4,1.3022421]
[1768863223194,3.3942635,3201.3,3200.4,1.3022421]
[1768863223398,0.86425912,3201.2,3200.4,1.3022421]
[1768863223592,0.86425912,3201.1,3200.4,1.3022421]
[1768863223801,0.86425912,3201.0,3200.4,1.3022421]
[1768863224098,3.3942635,3201.3,3200.4,1.3022421]
[1768863224295,0.86428788,3201.2,3200.4,1.3022421]
[1768863224500,0.86428788,3201.1,3200.4,1.3022421]
[1768863224704,0.86428788,3201.0,3200.4,1.3022421]
[1768863224895,3.3942635,3201.3,3200.4,1.3022421]
[1768863225095,0.8642977,3201.2,3200.4,1.3022421]
[1768863225295,0.8642977,3201.1,3200.4,1.3022421]
[1768863225597,0.8642977,3201.0,3200.4,1.3022421]
[1768863225889,3.3942635,3201.3,3200.4,1.3022421]
[1768863226095,0.86442827,3201.2,3200.0,5.156]
[1768863226298,0.86442827,3201.1,3200.4,1.3022421]
[1768863226504,0.86442827,3201.0,3200.4,1.3022421]
[1768863226702,3.3942635,3201.3,3200.4,1.3022421]
[1768863226903,0.86439237,3201.2,3200.4,1.3022421]
[1768863227103,0.86439237,3201.1,3200.4,1.3022421]
[1768863227301,0.86439237,3201.0,3200.4,1.3022421]
[1768863227496,3.3942635,3201.3,3200.4,1.3022421]
[1768863227702,0.86438918,3201.2,3200.4,1.3022421]
[1768863227904,0.86438918,3201.1,3200.0,5.156]
[1768863228104,0.86438918,3201.0,3200.4,1.3022421]
[1768863228305,3.3942635,3201.3,3200.4,1.3022421]
[1768863228607,0.86438535,3201.2,3200.4,1.3022421]
[1768863228905,0.86438535,3201.1,3200.4,1.3022421]
[1768863229106,0.86438535,3201.0,3200.4,1.3022421]
[1768863229404,3.3942635,3201.3,3200.4,1.3022421]
[1768863229607,0.86438297,3201.2,3200.4,1.3022421]
[1768863229905,0.86438297,3201.1,3200.4,1.3022421]
[1768863230108,0.86438297,3201.0,3200.4,1.3022421]
[1768863230304,3.3942635,3201.3,3200.4,1.3022421]
[1768863230606,4.13497435,3201.2,3200.4,1.3022421]
[1768863230912,0.86438023,3201.1,3200.4,1.3022421]
[1768863231201,0.86438023,3201.0,3200.4,1.3022421]
[1768863231406,3.27059412,3201.2,3200.4,1.3022421]
[1768863231597,0.86440304,3201.1,3200.4,1.3022421]
[1768863231797,0.86440304,3201.0,3200.4,1.3022421]
[1768863231998,3.27059412,3201.2,3200.4,1.3022421]
[1768863232198,0.86442769,3201.1,3200.4,1.3022421]
[1768863232401,0.86442769,3201.0,3200.4,1.3022421]
[1768863232604,3.27059412,3201.1,3200.4,1.3022421]
[1768863232901,0.86443504,3201.0,3200.4,1.3022421]
[1768863233101,3.27059412,3201.1,3200.4,1.3022421]
[1768863233408,0.86443426,3201.0,3200.4,1.3022421]
[1768863233600,3.27059412,3201.1,3200.4,1.3022421]
[1768863233897,0.86444918,3201.0,3200.4,1.3022421]
[1768863234100,3.27059412,3201.1,3200.4,1.3022421]
[1768863234396,0.86496905,3201.0,3200.4,1.3022421]
[1768863234598,3.27059412,3201.1,3200.4,1.3022421]
[1768863234811,0.86508142,3201.0,3200.4,1.3022421]
[1768863235002,3.27059412,3201.1,3200.4,1.3022421]
[1768863235204,0.86512553,3201.0,3200.4,1.3022421]
[1768863235397,3.27059412,3201.1,3200.3,1.3022421]
[1768863235602,0.86516121,3201.0,3200.3,1.3022421]
[1768863235799,3.27059412,3201.1,3200.3,1.3022421]
[1768863236004,0.86516032,3201.0,3200.3,1.3022421]
[1768863236200,3.27059412,3201.1,3200.3,1.3022421]
[1768863236503,0.86518694,3201.0,3200.3,1.3022421]
[1768863236698,3.27059412,3201.1,3200.3,1.3022421]
[1768863236903,0.86518104,3201.0,3200.3,1.3022421]
[1768863237104,3.27059412,3201.1,3200.3,1.3022421]
[1768863237304,0.86518698,3201.0,3200.3,1.3022421]
[1768863237504,3.27059412,3201.1,3200.3,1.3022421]
[1768863237704,0.86516554,3201.0,3200.2,5.143]
[1768863237905,3.27059412,3201.1,3200.4,1.3022421]
[1768863238106,0.86516236,3201.0,3200.4,1.3022421]
[1768863238311,3.27059412,3201.1,3200.4,1.3022421]
[1768863238511,0.86520352,3201.0,3200.4,1.3022421]
[1768863238713,3.27059412,3201.1,3200.4,1.3022421]
[1768863238914,0.8652031,3201.0,3200.2,5.143]
[1768863239106,3.27059412,3201.1,3200.2,5.143]
[1768863239305,0.86524639,3201.0,3200.2,5.143]
[1768863239506,3.27059412,3201.1,3200.2,5.143]
[1768863239706,0.86525169,3201.0,3200.2,5.143]
[1768863239909,0.86525169,3200.9,3200.2,5.143]
[1768863240205,3.27059412,3201.1,3200.2,5.143]
[1768863240505,0.86524798,3201.0,3200.2,5.143]
[1768863240706,3.27059412,3201.1,3200.2,5.143]
[1768863241012,0.86524843,3201.0,3200.2,5.143]
[1768863241214,3.27059412,3201.1,3200.2,5.143]
[1768863241514,0.86594891,3201.0,3200.2,5.143]
[1768863241715,3.27059412,3201.1,3200.2,5.143]
[1768863241915,0.86594809,3201.0,3200.2,5.143]
[1768863242213,3.27059412,3201.1,3200.2,5.143]
[1768863242414,0.86586719,3201.0,3200.2,5.143]
[1768863242616,3.27059412,3201.1,3200.2,5.143]
[1768863242806,0.86586718,3201.0,3200.2,5.143]
[1768863243001,3.27059412,3201.1,3200.2,5.143]
[1768863243206,0.86586407,3201.0,3200.2,5.143]
[1768863243508,3.27059412,3201.1,3200.2,5.143]
[1768863243715,0.86578287,3201.0,3200.2,5.143]
[1768863244016,3.27059412,3201.1,3200.2,5.143]
[1768863244209,0.86576096,3201.0,3200.2,5.143]
[1768863244411,3.27059412,3201.1,3200.2,5.143]
[1768863244613,0.86577821,3201.0,3199.6,0.15859486]
[1768863244814,3.27059412,3201.1,3199.9,1.30268517]
[1768863245118,3.47831802,3200.9,3200.0,5.148]
[1768863251722,3.47831802,3200.9,3199.6,0.15859486]
[1768863251922,3.47831802,3200.9,3200.1,5.155]
[1768863258626,1.27028252,3201.4,3200.1,5.155]
[1768863258821,4.34425799,3201.3,3200.1,5.155]
[1768863259022,4.34425799,3201.2,3200.1,5.155]
[1768863259221,4.34425799,3201.1,3200.1,5.155]
[1768863259521,0.86593997,3201.0,3200.1,5.155]
[1768863259723,3.47831802,3201.1,3200.1,5.155]
[1768863259923,0.86593729,3201.0,3200.1,5.155]
[1768863260124,3.47831802,3201.1,3200.1,5.155]
[1768863260423,0.86593547,3201.0,3200.1,5.155]
[1768863260623,3.47831802,3201.1,3200.1,5.155]
[1768863260822,0.86593526,3201.0,3200.1,5.155]
[1768863261022,3.47831802,3201.1,3200.1,5.155]
[1768863261226,0.86593357,3201.0,3200.1,5.155]
[1768863261430,3.47831802,3201.1,3200.1,5.155]
[1768863261628,0.86593173,3201.0,3200.1,5.155]
[1768863261923,3.47831802,3201.1,3200.1,5.155]
[1768863262232,0.86593146,3201.0,3200.1,5.155]
[1768863262425,3.47831802,3201.1,3200.1,5.155]
[1768863262723,0.86592855,3201.0,3200.1,5.155]
[1768863262924,3.47831802,3201.1,3200.1,5.155]
[1768863263124,0.86592855,3201.0,3200.1,5.155]
[1768863263326,3.47831802,3201.1,3200.1,5.155]
[1768863263532,0.86592669,3201.0,3200.1,5.155]
[1768863263826,3.47831802,3201.1,3200.1,5.155]
[1768863264028,4.36679878,3201.0,3200.1,5.155]
[1768863264229,3.50087334,3201.0,3200.1,5.155]
[1768863265130,3.50087334,3201.0,3199.7,1.30268517]
[1768863265329,3.50087334,3201.0,3199.8,8.293]
[1768863269537,3.50087334,3201.0,3199.9,3.126]
[1768863270639,3.50087334,3201.0,3199.6,0.15859486]
[1768863270934,3.50087334,3201.0,3199.7,9.60068517]
[1768863275740,3.50087334,3201.0,3199.8,3.126]
[1768863280543,3.50087334,3201.0,3199.9,3.126]
[1768863281645,3.50087334,3201.0,3199.7,1.45904517]
[1768863281943,3.50087334,3201.0,3199.8,8.312]
[1768863286953,3.50087334,3201.0,3199.9,3.126]
[1768863289253,0.87080677,3200.9,3199.7,1.45904517]
[1768863289455,3.50087334,3201.0,3200.0,5.194]
[1768863291156,0.87080674,3200.9,3200.0,5.194]
[1768863291357,3.50087334,3201.0,3200.0,5.194]
[1768863291557,0.8708086,3200.9,3200.0,5.194]
[1768863291757,3.50087334,3201.0,3200.0,5.194]
[1768863291959,0.87080905,3200.9,3200.0,5.194]
[1768863292255,3.50087334,3201.0,3200.1,5.198]
[1768863292457,3.3991526,3200.8,3200.1,5.198]
[1768863300166,3.3991526,3200.8,3199.7,1.45904517]
[1768863300464,3.3991526,3200.8,3199.8,8.332]
[1768863300867,3.3991526,3200.8,3200.2,1.30274708]
[1768863306963,1.66534393,3201.7,3200.8,1.30274708]
[1768863307166,2.53847456,3201.9,3200.8,1.30274708]
[1768863307366,2.53847456,3201.9,3200.9,1.30274708]
[1768863308163,2.53847456,3201.9,3200.7,5.212]
[1768863308367,2.53847456,3201.9,3200.8,1.30274708]
[1768863308768,3.41285608,3201.8,3200.8,1.30274708]
[1768863309069,3.41285608,3201.6,3200.8,1.30274708]
[1768863309276,0.87313063,3201.5,3200.8,1.30274708]
[1768863309569,0.87313063,3201.4,3200.8,1.30274708]
[1768863309773,3.41285608,3201.9,3200.8,1.30274708]
[1768863309971,3.41285608,3201.7,3200.8,1.30274708]
[1768863310264,0.87180932,3201.6,3200.8,1.30274708]
[1768863310465,0.87180932,3201.5,3200.8,1.30274708]
[1768863310669,3.41285608,3201.6,3200.8,1.30274708]
[1768863310670,0.87180932,3201.4,3200.8,1.30274708]
[1768863310870,3.41285608,3201.6,3200.8,1.30274708]